fUSD/lending_fUSD_20250811
["ID","MTS","AMOUNT","RATE_DAILY","PERIOD"]
[378678911,1754956250327,-400.0,0.00016994,2]
[378678912,1754956250336,-400.0,0.00016994,2]
[378678913,1754956250345,-400.0,0.00016994,2]
[378678914,1754956250355,-400.0,0.00016994,2]
[378678915,1754956250364,-670.06,0.00016994,2]
[378678916,1754956250374,-400.0,0.00016994,2]
[378678917,1754956250383,-251.34,0.00016994,2]
[378678918,1754956250392,-400.0,0.00016994,2]
[378678919,1754956250401,-368.91335889,0.00016994,2]
[378678920,1754956250411,-400.0,0.00016994,2]
[378678921,1754956250422,-426.39,0.00016994,2]
[378678922,1754956250432,-400.0,0.00016994,2]
[378678923,1754956250442,-400.0,0.00016994,2]
[378678924,1754956250453,-400.0,0.00016994,2]
[378678925,1754956250462,-400.0,0.00016994,2]
[378678926,1754956250472,-400.0,0.00016994,2]
[378678927,1754956250482,-400.0,0.00016994,2]
[378678928,1754956250491,-688.273481,0.00016994,2]
[378678929,1754956250501,-400.0,0.00016994,2]
[378678930,1754956250512,-400.0,0.00016994,2]
[378678931,1754956250521,-923.94,0.00016994,2]
[378678932,1754956250531,-400.0,0.00016994,2]
[378678933,1754956250541,-400.0,0.00016994,2]
[378678934,1754956250551,-369.40168,0.00016994,2]
[378678935,1754956250560,-578.817988,0.00016994,2]
[378678936,1754956250570,-400.0,0.00016994,2]
[378678937,1754956250579,-686.81,0.00016994,2]
[378678938,1754956250589,-790.88,0.00016994,2]
[378678939,1754956250598,-400.0,0.00016994,2]
[378678940,1754956250607,-205.91,0.00016994,2]
[378678941,1754956250618,-400.0,0.00016994,2]
[378678942,1754956250629,-400.0,0.00016994,2]
[378678943,1754956250640,-400.0,0.00016994,2]
[378678944,1754956250651,-400.0,0.00016994,2]
[378678945,1754956250662,-400.0,0.00016994,2]
[378678946,1754956250672,-621.16,0.00016994,2]
[378678947,1754956250684,-656.82,0.00016994,2]
[378678948,1754956250694,-400.0,0.00016994,2]
[378678949,1754956250705,-400.0,0.00016994,2]
[378678950,1754956250715,-400.0,0.00016994,2]
[378678951,1754956250724,-400.0,0.00016994,2]
[378678952,1754956250734,-400.0,0.00016994,2]
[378678953,1754956250743,-400.0,0.00016994,2]
[378678954,1754956250752,-1118.47,0.00016994,2]
[378678955,1754956250762,-400.0,0.00016994,2]
[378678956,1754956250772,-400.0,0.00016994,2]
[378678957,1754956250781,-400.0,0.00016994,2]
[378678958,1754956250791,-400.0,0.00016994,2]
[378678959,1754956250800,-617.03,0.00016994,2]
[378678960,1754956250810,-400.0,0.00016994,2]
[378678961,1754956250819,-781.49,0.00016994,2]
[378678962,1754956250829,-428.08080255,0.00016994,2]
[378678963,1754956250838,-400.0,0.00016994,2]
[378678964,1754956250847,-1237.61,0.00016994,2]
[378678965,1754956250856,-400.0,0.00016994,2]
[378678966,1754956250866,-417.51,0.00016994,2]
[378678967,1754956250875,-400.0,0.00016994,2]
[378678968,1754956250885,-784.88,0.00016994,2]
[378678969,1754956250894,-400.0,0.00016994,2]
[378678970,1754956250903,-400.0,0.00016994,2]
[378678971,1754956250913,-539.17,0.00016994,2]
[378678972,1754956250922,-549.33,0.00016994,2]
[378678973,1754956250931,-400.0,0.00016994,2]
[378678974,1754956250940,-400.0,0.00016994,2]
[378678975,1754956250950,-509.79,0.00016994,2]
[378678976,1754956250960,-1526.88,0.00016994,2]
[378678977,1754956250969,-400.0,0.00016994,2]
[378678978,1754956250978,-400.0,0.00016994,2]
[378678979,1754956250988,-674.23,0.00016994,2]
[378678980,1754956250997,-566.22,0.00016994,2]
[378678981,1754956251006,-723.38,0.00016994,2]
[378678982,1754956251015,-400.0,0.00016994,2]
[378678983,1754956251025,-400.0,0.00016994,2]
[378678984,1754956251034,-400.0,0.00016994,2]
[378678985,1754956251043,-683.35,0.00016994,2]
[378678986,1754956251052,-1058.26,0.00016994,2]
[378678987,1754956251062,-400.0,0.00016994,2]
[378678988,1754956251071,-400.0,0.00016994,2]
[378678989,1754956251081,-2420.62,0.00016994,2]
[378678990,1754956251090,-400.0,0.00016994,2]
[378678991,1754956251099,-2065.54,0.00016994,2]
[378678992,1754956251108,-400.0,0.00016994,2]
[378678993,1754956251118,-696.65,0.00016994,2]
[378678994,1754956251127,-456.95,0.00016994,2]
[378678995,1754956251137,-400.0,0.00016995,2]
[378678996,1754956251146,-476.04,0.00016995,2]
[378678997,1754956251156,-400.0,0.00016995,2]
[378678998,1754956251165,-400.0,0.00016995,2]
[378678999,1754956251174,-489.91,0.00016995,2]
[378679000,1754956251186,-400.0,0.00016995,2]
[378679001,1754956251196,-400.0,0.00016995,2]
[378679002,1754956251206,-400.0,0.00016995,2]
[378679003,1754956251215,-400.0,0.00016995,2]
[378679004,1754956251225,-961.95,0.00016995,2]
[378679005,1754956251234,-400.0,0.00016995,2]
[378679006,1754956251243,-514.55,0.00016995,2]
[378679007,1754956251252,-697.08,0.00016995,2]
[378679008,1754956251261,-400.0,0.00016995,2]
[378679009,1754956251271,-400.0,0.00016995,2]
[378679010,1754956251280,-400.0,0.00016995,2]
[378679011,1754956251289,-407.83,0.00016995,2]
[378679012,1754956251300,-1056.9,0.00016995,2]
[378679013,1754956251309,-770.28,0.00016995,2]
[378679014,1754956251319,-400.0,0.00016995,2]
[378679015,1754956251328,-400.0,0.00016995,2]
[378679016,1754956251336,-1130.85,0.00016995,2]
[378679017,1754956251346,-400.0,0.00016995,2]
[378679018,1754956251355,-773.64,0.00016995,2]
[378679019,1754956251364,-1297.93,0.00016995,2]
[378679020,1754956251374,-554.66,0.00016995,2]
[378679021,1754956251384,-468.35,0.00016995,2]
[378679022,1754956251393,-477.89,0.00016995,2]
[378679023,1754956251403,-400.0,0.00016995,2]
[378679024,1754956251412,-529.52,0.00016995,2]
[378679025,1754956251421,-1148.78,0.00016995,2]
[378679026,1754956251430,-1207.12,0.00016995,2]
[378679027,1754956251439,-400.0,0.00016995,2]
[378679028,1754956251450,-512.01,0.00016995,2]
[378679029,1754956251459,-977.39,0.00016995,2]
[378679030,1754956251469,-400.0,0.00016995,2]
[378679031,1754956251478,-431.17,0.00016995,2]
[378679032,1754956251488,-400.0,0.00016995,2]
[378679033,1754956251498,-603.37,0.00016995,2]
[378679034,1754956251507,-4067.15,0.00016995,2]
[378679035,1754956251517,-773.66,0.00016995,2]
[378679036,1754956251526,-400.0,0.00016995,2]
[378679037,1754956251536,-474.34,0.00016995,2]
[378679038,1754956251548,-473.31,0.00016995,2]
[378679039,1754956251557,-3406.88,0.00017,2]
[378679040,1754956251567,-2639.0722137,0.00017,2]
[378679041,1754956251576,-512.895501,0.00017,2]
[378679042,1754956251586,-512.895506,0.00017,2]
[378679043,1754956251596,-690.61129209,0.00017001,2]
[378679044,1754956251605,-300.0,0.00017003,2]
[378679045,1754956251615,-400.0,0.00017004,2]
[378679046,1754956251624,-400.0,0.00017004,2]
[378679047,1754956251633,-400.0,0.00017004,2]
[378679048,1754956251642,-400.0,0.00017004,2]
[378679049,1754956251652,-400.0,0.00017004,2]
[378679050,1754956251661,-400.0,0.00017004,2]
[378679051,1754956251670,-400.0,0.00017004,2]
[378679052,1754956251680,-400.0,0.00017004,2]
[378679053,1754956251692,-400.0,0.00017004,2]
[378679054,1754956251702,-400.0,0.00017004,2]
[378679055,1754956251711,-400.0,0.00017004,2]
[378679056,1754956251721,-400.0,0.00017004,2]
[378679057,1754956251731,-400.0,0.00017004,2]
[378679058,1754956251740,-400.0,0.00017004,2]
[378679059,1754956251749,-400.0,0.00017004,2]
[378679060,1754956251758,-400.0,0.00017004,2]
[378679061,1754956251767,-400.0,0.00017004,2]
[378679062,1754956251777,-400.0,0.00017004,2]
[378679063,1754956251786,-400.0,0.00017004,2]
[378679064,1754956251796,-415.4070913,0.00017004,2]
[378679065,1754956251806,-400.0,0.00017004,2]
[378679066,1754956251815,-400.0,0.00017004,2]
[378679067,1754956251825,-150.0,0.00017004,2]
[378679068,1754956251834,-400.0,0.00017004,2]
[378679069,1754956251844,-400.0,0.00017004,2]
[378679070,1754956251853,-400.0,0.00017004,2]
[378679071,1754956251863,-400.0,0.00017004,2]
[378679072,1754956251872,-400.0,0.00017004,2]
[378679073,1754956251882,-400.0,0.00017004,2]
[378679074,1754956251891,-400.0,0.00017004,2]
[378679075,1754956251900,-490.51,0.00017004,2]
[378679076,1754956251910,-400.0,0.00017004,2]
[378679077,1754956251919,-400.0,0.00017004,2]
[378679078,1754956251928,-400.0,0.00017004,2]
[378679079,1754956251937,-400.0,0.00017004,2]
[378679080,1754956251947,-416.21,0.00017004,2]
[378679081,1754956252214,-400.0,0.00017004,2]
[378679082,1754956252233,-492.38,0.00017004,2]
[378679083,1754956252243,-400.0,0.00017004,2]
[378679084,1754956252252,-517.44,0.00017004,2]
[378679085,1754956252261,-400.0,0.00017004,2]
[378679086,1754956252271,-458.23,0.00017004,2]
[378679087,1754956252280,-400.0,0.00017004,2]
[378679088,1754956252289,-424.29,0.00017004,2]
[378679089,1754956252299,-400.0,0.00017004,2]
[378679090,1754956252310,-519.78,0.00017004,2]
[378679091,1754956252319,-400.0,0.00017004,2]
[378679092,1754956252330,-400.25,0.00017004,2]
[378679093,1754956252339,-495.99,0.00017004,2]
[378679094,1754956252348,-400.0,0.00017004,2]
[378679095,1754956252358,-400.0,0.00017004,2]
[378679096,1754956252367,-400.0,0.00017004,2]
[378679097,1754956252377,-400.0,0.00017004,2]
[378679098,1754956252387,-400.0,0.00017004,2]
[378679099,1754956252396,-400.0,0.00017004,2]
[378679100,1754956252406,-400.0,0.00017004,2]
[378679101,1754956252415,-400.0,0.00017004,2]
[378679102,1754956252424,-400.0,0.00017004,2]
[378679103,1754956252434,-400.0,0.00017004,2]
[378679104,1754956252443,-400.0,0.00017004,2]
[378679105,1754956252453,-400.0,0.00017004,2]
[378679106,1754956252463,-400.0,0.00017004,2]
[378679107,1754956252473,-400.0,0.00017004,2]
[378679108,1754956252483,-400.0,0.00017004,2]
[378679109,1754956252493,-400.0,0.00017004,2]
[378679110,1754956252503,-400.0,0.00017004,2]
[378679111,1754956252513,-400.0,0.00017004,2]
[378679112,1754956252522,-400.0,0.00017004,2]
[378679113,1754956252531,-400.0,0.00017004,2]
[378679114,1754956252541,-400.0,0.00017004,2]
[378679115,1754956252551,-400.0,0.00017004,2]
[378679116,1754956252560,-662.22,0.00017004,2]
[378679117,1754956252569,-459.41,0.00017004,2]
[378679118,1754956252579,-400.0,0.00017004,2]
[378679119,1754956252588,-400.0,0.00017004,2]
[378679120,1754956252598,-400.0,0.00017004,2]
[378679121,1754956252607,-400.0,0.00017004,2]
[378679122,1754956252617,-400.0,0.00017004,2]
[378679123,1754956252626,-400.0,0.00017004,2]
[378679124,1754956252636,-400.0,0.00017004,2]
[378679125,1754956252645,-400.0,0.00017004,2]
[378679126,1754956252656,-400.0,0.00017004,2]
[378679127,1754956252666,-400.0,0.00017004,2]
[378679128,1754956252676,-400.0,0.00017004,2]
[378679129,1754956252689,-400.0,0.00017004,2]
[378679130,1754956252698,-400.0,0.00017004,2]
[378679131,1754956252707,-400.0,0.00017004,2]
[378679132,1754956252718,-470.66,0.00017004,2]
[378679133,1754956252728,-401.86,0.00017004,2]
[378679134,1754956252738,-630.29,0.00017004,2]
[378679135,1754956252749,-400.0,0.00017004,2]
[378679136,1754956252759,-400.0,0.00017004,2]
[378679137,1754956252770,-462.23666263,0.00017004,2]
[378679138,1754956252782,-437.19,0.00017004,2]
[378679139,1754956252792,-412.67,0.00017004,2]
[378679140,1754956252802,-400.0,0.00017004,2]
[378679141,1754956252812,-400.0,0.00017004,2]
[378679142,1754956252822,-400.0,0.00017004,2]
[378679143,1754956252831,-706.12,0.00017004,2]
[378679144,1754956252841,-400.0,0.00017004,2]
[378679145,1754956252850,-452.36,0.00017004,2]
[378679146,1754956252859,-400.0,0.00017004,2]
[378679147,1754956252869,-400.0,0.00017004,2]
[378679148,1754956252879,-400.0,0.00017004,2]
[378679149,1754956252888,-415.88,0.00017004,2]
[378679150,1754956252897,-748.93,0.00017004,2]
[378679151,1754956252907,-448.29,0.00017004,2]
[378679152,1754956252916,-400.0,0.00017004,2]
[378679153,1754956252926,-434.91,0.00017004,2]
[378679154,1754956252937,-400.0,0.00017004,2]
[378679155,1754956252946,-512.52,0.00017004,2]
[378679156,1754956252956,-488.54,0.00017004,2]
[378679157,1754956252965,-400.0,0.00017004,2]
[378679158,1754956252974,-400.0,0.00017004,2]
[378679159,1754956252984,-400.0,0.00017004,2]
[378679160,1754956252993,-400.0,0.00017004,2]
[378679161,1754956253003,-400.0,0.00017004,2]
[378679162,1754956253012,-531.95,0.00017004,2]
[378679163,1754956253021,-575.03,0.00017004,2]
[378679164,1754956253031,-400.0,0.00017004,2]
[378679165,1754956253039,-485.19,0.00017004,2]
[378679166,1754956253049,-538.53,0.00017004,2]
[378679167,1754956253058,-400.0,0.00017004,2]
[378679168,1754956253068,-728.67,0.00017004,2]
[378679169,1754956253078,-400.0,0.00017004,2]
[378679170,1754956253088,-530.0,0.00017004,2]
[378679171,1754956253098,-400.0,0.00017004,2]
[378679172,1754956253107,-441.25,0.00017004,2]
[378679173,1754956253118,-585.0,0.00017004,2]
[378679174,1754956253128,-400.0,0.00017004,2]
[378679175,1754956253138,-400.0,0.00017004,2]
[378679176,1754956253147,-564.63,0.00017004,2]
[378679177,1754956253157,-1142.47,0.00017004,2]
[378679178,1754956253167,-400.0,0.00017004,2]
[378679179,1754956253176,-955.21,0.00017004,2]
[378679180,1754956253186,-420.37,0.00017004,2]
[378679181,1754956253196,-596.74,0.00017004,2]
[378679182,1754956253205,-400.0,0.00017004,2]
[378679183,1754956253215,-730.89,0.00017004,2]
[378679184,1754956253225,-400.0,0.00017004,2]
[378679185,1754956253235,-400.0,0.00017004,2]
[378679186,1754956253244,-400.0,0.00017004,2]
[378679187,1754956253253,-507.68,0.00017004,2]
[378679188,1754956253262,-400.0,0.00017004,2]
[378679189,1754956253271,-1320.38,0.00017004,2]
[378679190,1754956253281,-400.0,0.00017004,2]
[378679191,1754956253290,-400.0,0.00017004,2]
[378679192,1754956253299,-400.0,0.00017004,2]
[378679193,1754956253308,-738.94,0.00017004,2]
[378679194,1754956253317,-1116.62,0.00017004,2]
[378679195,1754956253327,-400.0,0.00017004,2]
[378679196,1754956253336,-400.0,0.00017004,2]
[378679197,1754956253345,-400.0,0.00017004,2]
[378679198,1754956253355,-937.64,0.00017004,2]
[378679199,1754956253364,-844.9,0.00017004,2]
[378679200,1754956253374,-1564.26,0.00017004,2]
[378679201,1754956253383,-441.32,0.00017004,2]
[378679202,1754956253393,-491.5,0.00017004,2]
[378679203,1754956253402,-618.68,0.00017004,2]
[378679204,1754956253412,-400.0,0.00017004,2]
[378679205,1754956253421,-400.0,0.00017004,2]
[378679206,1754956253430,-954.6,0.00017004,2]
[378679207,1754956253440,-864.95,0.00017004,2]
[378679208,1754956253449,-400.0,0.00017004,2]
[378679209,1754956253459,-400.0,0.00017004,2]
[378679210,1754956253468,-828.48,0.00017004,2]
[378679211,1754956253477,-729.2,0.00017004,2]
[378679212,1754956253487,-482.38,0.00017004,2]
[378679213,1754956253495,-400.0,0.00017004,2]
[378679214,1754956253504,-1378.77,0.00017004,2]
[378679215,1754956253513,-400.0,0.00017004,2]
[378679216,1754956253522,-617.63,0.00017004,2]
[378679217,1754956253531,-400.0,0.00017004,2]
[378679218,1754956253540,-400.0,0.00017004,2]
[378679219,1754956253550,-400.0,0.00017004,2]
[378679220,1754956253559,-400.0,0.00017004,2]
[378679221,1754956253569,-581.58,0.00017004,2]
[378679222,1754956253579,-400.0,0.00017004,2]
[378679223,1754956253588,-1006.58,0.00017004,2]
[378679224,1754956253597,-400.0,0.00017004,2]
[378679225,1754956253606,-400.0,0.00017004,2]
[378679226,1754956253615,-1521.51,0.00017004,2]
[378679227,1754956253625,-400.0,0.00017004,2]
[378679228,1754956253634,-400.0,0.00017004,2]
[378679229,1754956253643,-400.0,0.00017004,2]
[378679230,1754956253654,-9889.3,0.00017004,2]
[378679231,1754956253663,-419.44,0.00017004,2]
[378679232,1754956253672,-1317.42,0.00017004,2]
[378679233,1754956253685,-400.0,0.00017004,2]
[378679234,1754956253694,-551.51,0.00017004,2]
[378679235,1754956253703,-556.94,0.00017004,2]
[378679236,1754956253713,-400.0,0.00017004,2]
[378679237,1754956253723,-2001.92,0.00017004,2]
[378679238,1754956253732,-1260.67,0.00017004,2]
[378679239,1754956253741,-400.0,0.00017004,2]
[378679240,1754956253751,-676.12,0.00017004,2]
[378679241,1754956253762,-544.05,0.00017004,2]
[378679242,1754956253772,-400.0,0.00017004,2]
[378679243,1754956253781,-400.0,0.00017004,2]
[378679244,1754956253791,-400.0,0.00017004,2]
[378679245,1754956253800,-400.0,0.00017004,2]
[378679246,1754956253810,-400.0,0.00017004,2]
[378679247,1754956253820,-770.27,0.00017004,2]
[378679248,1754956253830,-527.17,0.00017004,2]
[378679249,1754956253839,-425.25,0.00017004,2]
[378679250,1754956253850,-423.79,0.00017004,2]
[378679251,1754956253859,-400.0,0.00017004,2]
[378679252,1754956253869,-400.0,0.00017004,2]
[378679253,1754956253878,-400.0,0.00017004,2]
[378679254,1754956253888,-474.89,0.00017004,2]
[378679255,1754956253897,-400.0,0.00017004,2]
[378679256,1754956253907,-870.74,0.00017004,2]
[378679257,1754956253917,-535.38,0.00017004,2]
[378679258,1754956253926,-762.46,0.00017004,2]
[378679259,1754956253935,-1123.19,0.00017004,2]
[378679260,1754956253946,-594.22,0.00017004,2]
[378679261,1754956253957,-400.0,0.00017004,2]
[378679262,1754956253967,-400.0,0.00017004,2]
[378679263,1754956253976,-410.08,0.00017004,2]
[378679264,1754956253985,-400.0,0.00017004,2]
[378679265,1754956253995,-1414.95,0.00017004,2]
[378679266,1754956254004,-405.21843591,0.00017004,2]
[378679267,1754956254013,-400.0,0.00017004,2]
[378679268,1754956254023,-400.0,0.00017004,2]
[378679269,1754956254033,-459.2,0.00017004,2]
[378679270,1754956254043,-827.03,0.00017004,2]
[378679271,1754956254052,-400.0,0.00017004,2]
[378679272,1754956254061,-1165.46,0.00017004,2]
[378679273,1754956254070,-400.0,0.00017004,2]
[378679274,1754956254079,-400.0,0.00017004,2]
[378679275,1754956254089,-531.67947224,0.00017004,2]
[378679276,1754956254098,-470.66,0.00017004,2]
[378679277,1754956254107,-1120.56,0.00017004,2]
[378679278,1754956254116,-400.0,0.00017004,2]
[378679279,1754956254126,-175.32,0.00017004,2]
[378679280,1754956254135,-400.0,0.00017004,2]
[378679281,1754956254144,-400.0,0.00017004,2]
[378679282,1754956254153,-6234.86,0.00017004,2]
[378679283,1754956254162,-400.0,0.00017004,2]
[378679284,1754956254171,-400.0,0.00017004,2]
[378679285,1754956254181,-1539.44,0.00017004,2]
[378679286,1754956254190,-425.01,0.00017005,2]
[378679287,1754956254199,-619.28,0.00017005,2]
[378679288,1754956254209,-784.54,0.00017005,2]
[378679289,1754956254218,-400.0,0.00017005,2]
[378679290,1754956254227,-571.88,0.00017005,2]
[378679291,1754956254237,-573.13,0.00017005,2]
[378679292,1754956254246,-400.0,0.00017005,2]
[378679293,1754956254255,-1164.33,0.00017005,2]
[378679294,1754956254265,-1531.61,0.00017005,2]
[378679295,1754956254274,-704.09,0.00017005,2]
[378679296,1754956254283,-400.0,0.00017005,2]
[378679297,1754956254292,-1024.62,0.00017005,2]
[378679298,1754956254301,-6267.71,0.00017005,2]
[378679299,1754956254310,-643.34,0.00017005,2]
[378679300,1754956254320,-818.34,0.00017005,2]
[378679301,1754956254330,-1562.48,0.00017005,2]
[378679302,1754956254340,-869.54,0.00017005,2]
[378679303,1754956254349,-764.15,0.00017005,2]
[378679304,1754956254358,-1434.28,0.00017005,2]
[378679305,1754956254366,-400.0,0.00017005,2]
[378679306,1754956254375,-496.88,0.00017005,2]
[378679307,1754956254385,-400.0,0.00017005,2]
[378679308,1754956254394,-756.23,0.00017005,2]
[378679309,1754956254403,-1172.86,0.00017005,2]
[378679310,1754956254413,-400.0,0.00017005,2]
[378679311,1754956254422,-789.48,0.00017005,2]
[378679312,1754956254431,-532.9,0.00017005,2]
[378679313,1754956254441,-926.19,0.00017005,2]
[378679314,1754956254450,-554.88,0.00017005,2]
[378679315,1754956254460,-410.31,0.00017005,2]
[378679316,1754956254469,-852.47091579,0.00017007,2]
[378679317,1754956254479,-10558.44544042,0.00017011,2]
[378679318,1754956254488,-593.6837735,0.00017021,2]
[378679319,1754956254497,-1000.0,0.00017021,2]
[378679320,1754956254507,-1000.0,0.00017021,2]
[378679321,1754956254516,-1000.0,0.00017021,2]
[378679322,1754956254525,-1000.0,0.00017021,2]
[378679323,1754956254534,-1000.0,0.00017021,2]
[378679324,1754956254606,-500.0,0.00017021,2]
[378679325,1754956254616,-1099.39713076,0.00017021,2]
[378679326,1754956254625,-462.81945389,0.00017031,2]
[378679327,1754956254634,-2074.0,0.00017041,2]
[378679328,1754956254643,-3501.39291462,0.00017043,2]
[378679329,1754956254652,-600.0,0.00017048,2]
[378679330,1754956254662,-600.0,0.00017048,2]
[378679331,1754956254671,-600.0,0.00017048,2]
[378679332,1754956254682,-600.0,0.00017048,2]
[378679333,1754956254692,-600.0,0.00017048,2]
[378679334,1754956254701,-508.36,0.00017048,2]
[378679335,1754956254711,-180.66,0.00017058,2]
[378679336,1754956254720,-150.0,0.00017068,2]
[378679337,1754956254730,-8354.32389157,0.00017075,2]
[378679338,1754956254739,-410.35685646,0.00017076,2]
[378679339,1754956254749,-179.96,0.00017091,2]
[378679340,1754956254760,-3630.94445246,0.00017098,2]
[378679341,1754956254772,-776.0,0.000171,2]
[378679342,1754956254782,-240.0,0.000171,2]
[378679343,1754956254791,-380.0,0.000171,2]
[378679344,1754956254802,-462.81945389,0.00017107,2]
[378679345,1754956254811,-150.0,0.00017138,2]
[378679346,1754956254820,-150.0,0.00017145,2]
[378679347,1754956254829,-3765.2893972,0.00017153,2]
[378679348,1754956254838,-500.0,0.00017162,2]
[378679349,1754956254847,-500.0,0.00017162,2]
[378679350,1754956254856,-500.0,0.00017162,2]
[378679351,1754956254865,-500.0,0.00017162,2]
[378679352,1754956254874,-500.0,0.00017162,2]
[378679353,1754956254883,-500.0,0.00017162,2]
[378679354,1754956254892,-500.0,0.00017162,2]
[378679355,1754956254901,-500.0,0.00017162,2]
[378679356,1754956254910,-500.0,0.00017162,2]
[378679357,1754956254919,-500.0,0.00017162,2]
[378679358,1754956254929,-500.0,0.00017162,2]
[378679359,1754956254938,-500.0,0.00017162,2]
[378679360,1754956254947,-500.0,0.00017162,2]
[378679361,1754956254956,-500.0,0.00017162,2]
[378679362,1754956254965,-500.0,0.00017162,2]
[378679363,1754956254974,-500.0,0.00017162,2]
[378679364,1754956254983,-500.0,0.00017162,2]
[378679365,1754956254993,-500.0,0.00017162,2]
[378679366,1754956255002,-500.0,0.00017162,2]
[378679367,1754956255011,-500.0,0.00017162,2]
[378679368,1754956255021,-500.0,0.00017162,2]
[378679369,1754956255030,-500.0,0.00017162,2]
[378679370,1754956255039,-500.0,0.00017162,2]
[378679371,1754956255049,-500.0,0.00017162,2]
[378679372,1754956255059,-500.0,0.00017162,2]
[378679373,1754956255068,-500.0,0.00017162,2]
[378679374,1754956255077,-500.0,0.00017162,2]
[378679375,1754956255086,-500.0,0.00017162,2]
[378679376,1754956255095,-500.0,0.00017162,2]
[378679377,1754956255104,-500.0,0.00017162,2]
[378679378,1754956255113,-500.0,0.00017162,2]
[378679379,1754956255122,-500.0,0.00017162,2]
[378679380,1754956255131,-500.0,0.00017162,2]
[378679381,1754956255140,-500.0,0.00017162,2]
[378679382,1754956255149,-500.0,0.00017162,2]
[378679383,1754956255158,-500.0,0.00017162,2]
[378679384,1754956255166,-500.0,0.00017162,2]
[378679385,1754956255175,-500.0,0.00017162,2]
[378679386,1754956255184,-500.0,0.00017162,2]
[378679387,1754956255193,-500.0,0.00017162,2]
[378679388,1754956255202,-500.0,0.00017162,2]
[378679389,1754956255211,-500.0,0.00017162,2]
[378679390,1754956255220,-500.0,0.00017162,2]
[378679391,1754956255229,-500.0,0.00017162,2]
[378679392,1754956255238,-500.0,0.00017162,2]
[378679393,1754956255247,-500.0,0.00017162,2]
[378679394,1754956255256,-500.0,0.00017162,2]
[378679395,1754956255265,-500.0,0.00017162,2]
[378679396,1754956255274,-500.0,0.00017162,2]
[378679397,1754956255283,-500.0,0.00017162,2]
[378679398,1754956255292,-500.0,0.00017162,2]
[378679399,1754956255301,-500.0,0.00017162,2]
[378679400,1754956255310,-500.0,0.00017162,2]
[378679401,1754956255319,-500.0,0.00017162,2]
[378679402,1754956255328,-500.0,0.00017162,2]
[378679403,1754956255337,-500.0,0.00017162,2]
[378679404,1754956255346,-500.0,0.00017162,2]
[378679405,1754956255355,-500.0,0.00017162,2]
[378679406,1754956255364,-500.0,0.00017162,2]
[378679407,1754956255373,-500.0,0.00017162,2]
[378679408,1754956255382,-500.0,0.00017162,2]
[378679409,1754956255392,-500.0,0.00017162,2]
[378679410,1754956255403,-500.0,0.00017162,2]